[Event "*** Titled Tuesday Blitz"]
[Site "Chess.com"]
[Date "2019.02.05"]
[Round "1"]
[White "igorkovalenko"]
[Black "varacalli"]
[Result "1-0"]
[WhiteElo "2880"]
[BlackElo "2448"]
[TimeControl "180+2"]
[EndTime "13:13:52 PST"]
[Termination "igorkovalenko won by checkmate"]

1. d4 {[%clk 0:02:59.4]} 1... d5 {[%clk 0:02:59.8]} 2. Nf3 {[%clk 0:03:00.5]}
2... Nf6 {[%clk 0:03:00.5]} 3. c4 {[%clk 0:03:01.2]} 3... e6 {[%clk 0:03:01.7]}
4. Nc3 {[%clk 0:03:02.2]} 4... Nbd7 {[%clk 0:03:02.2]} 5. cxd5 {[%clk 0:03:02]}
5... exd5 {[%clk 0:03:03]} 6. Bf4 {[%clk 0:03:02.9]} 6... c6 {[%clk 0:03:01.9]}
7. e3 {[%clk 0:03:03.8]} 7... Nh5 {[%clk 0:03:03]} 8. Bg3 {[%clk 0:03:04]} 8...
Nxg3 {[%clk 0:03:03.4]} 9. hxg3 {[%clk 0:03:05.9]} 9... Bd6 {[%clk 0:03:01.4]}
10. Bd3 {[%clk 0:03:07]} 10... h6 {[%clk 0:03:02.5]} 11. Qc2 {[%clk 0:03:07.7]}
11... Nf6 {[%clk 0:03:03.4]} 12. O-O-O {[%clk 0:03:05.6]} 12... Be6 {[%clk
0:02:56]} 13. Kb1 {[%clk 0:03:06.4]} 13... Qe7 {[%clk 0:02:51.8]} 14. Ne2 {[%clk
0:03:07.3]} 14... O-O-O {[%clk 0:02:50.2]} 15. Nf4 {[%clk 0:03:08.3]} 15... Kb8
{[%clk 0:02:48.6]} 16. Ka1 {[%clk 0:03:09.3]} 16... Bd7 {[%clk 0:02:47.1]} 17.
Rb1 {[%clk 0:03:09.6]} 17... Rhe8 {[%clk 0:02:47.1]} 18. b4 {[%clk 0:03:02.5]}
18... Rc8 {[%clk 0:02:43.1]} 19. Qb2 {[%clk 0:02:58]} 19... Ne4 {[%clk
0:02:41.1]} 20. Bf1 {[%clk 0:02:32.7]} 20... Ka8 {[%clk 0:02:38.5]} 21. Nd3
{[%clk 0:02:33.7]} 21... f6 {[%clk 0:02:34.7]} 22. Be2 {[%clk 0:02:33.2]} 22...
Bc7 {[%clk 0:02:23.3]} 23. Rhd1 {[%clk 0:02:25.5]} 23... Bd6 {[%clk 0:02:16.7]}
24. Bf1 {[%clk 0:02:26.8]} 24... Bc7 {[%clk 0:02:15.3]} 25. Nc5 {[%clk
0:02:26.8]} 25... Nxc5 {[%clk 0:02:07.7]} 26. bxc5 {[%clk 0:02:27.9]} 26... Rb8
{[%clk 0:02:07.3]} 27. Rd3 {[%clk 0:02:23.2]} 27... b5 {[%clk 0:01:59]} 28. cxb6
{[%clk 0:02:15.4]} 28... Bxb6 {[%clk 0:01:56.6]} 29. Rb3 {[%clk 0:02:15]} 29...
c5 {[%clk 0:01:55.4]} 30. dxc5 {[%clk 0:02:15.4]} 30... Qxc5 {[%clk 0:01:56]}
31. Nd4 {[%clk 0:02:16]} 31... Rec8 {[%clk 0:01:53.6]} 32. Ba6 {[%clk
0:02:15.6]} 32... Rc7 {[%clk 0:01:52.8]} 33. Bd3 {[%clk 0:02:14.5]} 33... Qd6
{[%clk 0:01:38.2]} 34. Nb5 {[%clk 0:01:49.3]} 34... Bxb5 {[%clk 0:01:36.9]} 35.
Rxb5 {[%clk 0:01:51.2]} 35... Rc5 {[%clk 0:01:27.1]} 36. a4 {[%clk 0:01:31.5]}
36... Rxb5 {[%clk 0:01:23.3]} 37. Bxb5 {[%clk 0:01:32.3]} 37... Rc8 {[%clk
0:01:13.7]} 38. Ba6 {[%clk 0:01:26.7]} 38... Rc5 {[%clk 0:01:05.3]} 39. Ka2
{[%clk 0:01:15.7]} 39... Qe5 {[%clk 0:01:02.7]} 40. Qxe5 {[%clk 0:01:11.1]}
40... fxe5 {[%clk 0:01:04.6]} 41. Kb3 {[%clk 0:01:12]} 41... Kb8 {[%clk
0:01:04.2]} 42. Rh1 {[%clk 0:01:11.7]} 42... Kc7 {[%clk 0:01:03.2]} 43. Rh5
{[%clk 0:01:04.2]} 43... d4 {[%clk 0:01:01.7]} 44. e4 {[%clk 0:00:54.6]} 44...
Rc3+ {[%clk 0:00:57.4]} 45. Kb2 {[%clk 0:00:55.6]} 45... Kd6 {[%clk 0:00:54.5]}
46. Rf5 {[%clk 0:00:46.1]} 46... Ba5 {[%clk 0:00:51.8]} 47. f4 {[%clk
0:00:45.9]} 47... Rxg3 {[%clk 0:00:48]} 48. Rxe5 {[%clk 0:00:47.3]} 48... Rxg2+
{[%clk 0:00:48.9]} 49. Kb3 {[%clk 0:00:43.8]} 49... Bc3 {[%clk 0:00:50]} 50.
Rd5+ {[%clk 0:00:42.3]} 50... Ke6 {[%clk 0:00:50.5]} 51. Bf1 {[%clk 0:00:34.7]}
51... Rb2+ {[%clk 0:00:50.6]} 52. Kc4 {[%clk 0:00:36.2]} 52... Rb4+ {[%clk
0:00:51.1]} 53. Kd3 {[%clk 0:00:37.7]} 53... Rxa4 {[%clk 0:00:51]} 54. Bh3+
{[%clk 0:00:38.8]} 54... Ke7 {[%clk 0:00:46.9]} 55. Rd7+ {[%clk 0:00:40]} 55...
Kf8 {[%clk 0:00:48.3]} 56. e5 {[%clk 0:00:39.2]} 56... Ra3 {[%clk 0:00:38]} 57.
Bf5 {[%clk 0:00:33.3]} 57... g5 {[%clk 0:00:35.6]} 58. fxg5 {[%clk 0:00:25.9]}
58... hxg5 {[%clk 0:00:37.5]} 59. e6 {[%clk 0:00:26.8]} 59... Bb4+ {[%clk
0:00:36.4]} 60. Kxd4 {[%clk 0:00:27.1]} 60... Be7 {[%clk 0:00:37.1]} 61. Rb7
{[%clk 0:00:23.8]} 61... Ra6 {[%clk 0:00:35.7]} 62. Ke4 {[%clk 0:00:22.9]} 62...
Ra4+ {[%clk 0:00:33.6]} 63. Ke3 {[%clk 0:00:23.4]} 63... Ra3+ {[%clk 0:00:33.1]}
64. Ke2 {[%clk 0:00:22.6]} 64... Ra5 {[%clk 0:00:32.6]} 65. Bg4 {[%clk
0:00:21.5]} 65... Ra3 {[%clk 0:00:33.2]} 66. Kf2 {[%clk 0:00:21.7]} 66... a5
{[%clk 0:00:33.3]} 67. Bh5 {[%clk 0:00:18.2]} 67... Bb4 {[%clk 0:00:28.7]} 68.
Rf7+ {[%clk 0:00:17.9]} 68... Kg8 {[%clk 0:00:25.9]} 69. Rb7 {[%clk 0:00:19]}
69... Kf8 {[%clk 0:00:25.1]} 70. Rf7+ {[%clk 0:00:19.6]} 70... Kg8 {[%clk
0:00:26.7]} 71. e7 {[%clk 0:00:18.3]} 71... Bc5+ {[%clk 0:00:21]} 72. Kg2 {[%clk
0:00:17]} 72... Ra2+ {[%clk 0:00:21.3]} 73. Kg3 {[%clk 0:00:17.8]} 73... Bxe7
{[%clk 0:00:21.3]} 74. Rxe7 {[%clk 0:00:18.8]} 74... Ra4 {[%clk 0:00:22.3]} 75.
Ra7 {[%clk 0:00:19.6]} 75... Kf8 {[%clk 0:00:23]} 76. Bg6 {[%clk 0:00:20.5]}
76... Kg8 {[%clk 0:00:23.3]} 77. Bh5 {[%clk 0:00:20]} 77... Kf8 {[%clk
0:00:24.7]} 78. Bg6 {[%clk 0:00:19.2]} 78... Kg8 {[%clk 0:00:25.3]} 79. Be8
{[%clk 0:00:17.6]} 79... Re4 {[%clk 0:00:22.4]} 80. Bc6 {[%clk 0:00:18.2]} 80...
Re5 {[%clk 0:00:22.5]} 81. Kg4 {[%clk 0:00:19.1]} 81... Kf8 {[%clk 0:00:23.3]}
82. Kh5 {[%clk 0:00:19.3]} 82... Re7 {[%clk 0:00:24.1]} 83. Rxa5 {[%clk
0:00:19.8]} 83... Rc7 {[%clk 0:00:25.3]} 84. Ra6 {[%clk 0:00:20.6]} 84... Ke7
{[%clk 0:00:26.1]} 85. Kxg5 {[%clk 0:00:21.5]} 85... Kd6 {[%clk 0:00:27.1]} 86.
Be4+ {[%clk 0:00:22.6]} 86... Kc5 {[%clk 0:00:28.1]} 87. Kf5 {[%clk 0:00:21.7]}
87... Kd4 {[%clk 0:00:27.9]} 88. Ra4+ {[%clk 0:00:22.1]} 88... Ke3 {[%clk
0:00:27.1]} 89. Bd5 {[%clk 0:00:23.5]} 89... Re7 {[%clk 0:00:25.4]} 90. Be6
{[%clk 0:00:22.6]} 90... Rc7 {[%clk 0:00:21.7]} 91. Ke5 {[%clk 0:00:23.6]} 91...
Rc5+ {[%clk 0:00:22.2]} 92. Bd5 {[%clk 0:00:24.9]} 92... Rc7 {[%clk 0:00:23]}
93. Ra3+ {[%clk 0:00:26.1]} 93... Kd2 {[%clk 0:00:24]} 94. Kd4 {[%clk
0:00:27.4]} 94... Rd7 {[%clk 0:00:24.4]} 95. Ra2+ {[%clk 0:00:28.4]} 95... Ke1
{[%clk 0:00:25.7]} 96. Ke4 {[%clk 0:00:29.6]} 96... Rd8 {[%clk 0:00:25.6]} 97.
Rh2 {[%clk 0:00:26.4]} 97... Rd7 {[%clk 0:00:24.5]} 98. Ke3 {[%clk 0:00:27.7]}
98... Kd1 {[%clk 0:00:21.5]} 99. Be4 {[%clk 0:00:29.1]} 99... Kc1 {[%clk
0:00:22.5]} 100. Rc2+ {[%clk 0:00:30]} 100... Kd1 {[%clk 0:00:23.9]} 101. Rb2
{[%clk 0:00:30.2]} 101... Rc7 {[%clk 0:00:24.9]} 102. Rb6 {[%clk 0:00:23]}
102... Rc8 {[%clk 0:00:22.9]} 103. Rb7 {[%clk 0:00:16.9]} 103... Rc5 {[%clk
0:00:21.6]} 104. Rg7 {[%clk 0:00:11.8]} 104... Kc1 {[%clk 0:00:21]} 105. Rb7
{[%clk 0:00:12.5]} 105... Kd1 {[%clk 0:00:21.7]} 106. Bd3 {[%clk 0:00:13.8]}
106... Rc8 {[%clk 0:00:20.2]} 107. Rb1+ {[%clk 0:00:13.3]} 107... Rc1 {[%clk
0:00:20.7]} 108. Rb2 {[%clk 0:00:14.6]} 108... Rc7 {[%clk 0:00:21.7]} 109. Rg2
{[%clk 0:00:15.7]} 109... Re7+ {[%clk 0:00:22.9]} 110. Be4 {[%clk 0:00:16.8]}
110... Kc1 {[%clk 0:00:23.9]} 111. Rc2+ {[%clk 0:00:17.9]} 111... Kd1 {[%clk
0:00:25.5]} 112. Rc6 {[%clk 0:00:17.5]} 112... Rd7 {[%clk 0:00:25.1]} 113. Bf3+
{[%clk 0:00:17.3]} 113... Ke1 {[%clk 0:00:25.5]} 114. Rc1+ {[%clk 0:00:18.9]}
114... Rd1 {[%clk 0:00:24.6]} 115. Rxd1# {[%clk 0:00:20.2]} 1-0

[Event "*** Titled Tuesday Blitz"]
[Site "Chess.com"]
[Date "2019.02.05"]
[Round "2"]
[White "fm_magua"]
[Black "IMRosen"]
[Result "1-0"]
[WhiteElo "2395"]
[BlackElo "2494"]
[TimeControl "180+2"]
[EndTime "13:17:35 PST"]
[Termination "fm_magua won by resignation"]

1. e4 {[%clk 0:02:58.4]} 1... c5 {[%clk 0:02:59.2]} 2. Nf3 {[%clk 0:02:59]} 2...
e6 {[%clk 0:03:00.1]} 3. d4 {[%clk 0:03:00.1]} 3... cxd4 {[%clk 0:03:02]} 4.
Nxd4 {[%clk 0:03:02]} 4... Nc6 {[%clk 0:03:03.7]} 5. Nc3 {[%clk 0:03:03.4]} 5...
Qc7 {[%clk 0:03:04.9]} 6. Be2 {[%clk 0:03:02.5]} 6... a6 {[%clk 0:03:06.3]} 7.
O-O {[%clk 0:03:04]} 7... Nf6 {[%clk 0:03:07.9]} 8. Be3 {[%clk 0:03:04.2]} 8...
Bb4 {[%clk 0:03:08]} 9. Kh1 {[%clk 0:03:05]} 9... Bxc3 {[%clk 0:03:02]} 10. bxc3
{[%clk 0:03:03.7]} 10... Nxe4 {[%clk 0:03:03.5]} 11. Bd3 {[%clk 0:03:03.7]}
11... Nxc3 {[%clk 0:02:39.7]} 12. Qg4 {[%clk 0:03:04]} 12... g6 {[%clk
0:01:46.3]} 13. Nxc6 {[%clk 0:03:04.1]} 13... Qxc6 {[%clk 0:01:38.8]} 14. Qd4
{[%clk 0:02:59.9]} 14... O-O {[%clk 0:01:26.6]} 15. Bh6 {[%clk 0:03:00.4]} 15...
e5 {[%clk 0:01:16.2]} 16. Qxe5 {[%clk 0:03:00.7]} 16... f6 {[%clk 0:01:11.9]}
17. Qe7 {[%clk 0:02:59.6]} 1-0

[Event "*** Titled Tuesday Blitz"]
[Site "Chess.com"]
[Date "2019.02.05"]
[Round "2"]
[White "chenrip"]
[Black "GABUZYAN_CHESSMOOD"]
[Result "0-1"]
[WhiteElo "2312"]
[BlackElo "2771"]
[TimeControl "180+2"]
[EndTime "13:17:55 PST"]
[Termination "GABUZYAN_CHESSMOOD won by resignation"]

1. e4 {[%clk 0:03:01.9]} 1... c5 {[%clk 0:03:00.4]} 2. Nf3 {[%clk 0:03:02.7]}
2... d6 {[%clk 0:03:01.6]} 3. Bb5+ {[%clk 0:03:04.1]} 3... Bd7 {[%clk
0:03:02.5]} 4. a4 {[%clk 0:03:06]} 4... Nf6 {[%clk 0:03:03.1]} 5. Nc3 {[%clk
0:03:06.8]} 5... e6 {[%clk 0:03:02.9]} 6. O-O {[%clk 0:03:06.7]} 6... Be7 {[%clk
0:03:04.1]} 7. d4 {[%clk 0:03:07.7]} 7... cxd4 {[%clk 0:03:04.6]} 8. Nxd4 {[%clk
0:03:08.9]} 8... O-O {[%clk 0:03:06.2]} 9. Be3 {[%clk 0:03:07.8]} 9... a6 {[%clk
0:03:07]} 10. Bxd7 {[%clk 0:03:06]} 10... Nbxd7 {[%clk 0:03:08.9]} 11. a5 {[%clk
0:03:04.3]} 11... Rc8 {[%clk 0:03:09.9]} 12. h3 {[%clk 0:03:02.5]} 12... Rc4
{[%clk 0:03:07.7]} 13. f4 {[%clk 0:02:57.3]} 13... Qc7 {[%clk 0:03:08.5]} 14. g4
{[%clk 0:02:46.3]} 14... Rc8 {[%clk 0:03:07.3]} 15. g5 {[%clk 0:02:46.9]} 15...
Rxc3 {[%clk 0:03:08.5]} 16. bxc3 {[%clk 0:02:45.9]} 16... Nxe4 {[%clk
0:03:09.5]} 17. Qd3 {[%clk 0:02:41]} 17... d5 {[%clk 0:03:07.7]} 18. f5 {[%clk
0:02:39.4]} 18... Ne5 {[%clk 0:03:08.6]} 19. Qd1 {[%clk 0:02:31.1]} 19... Qxc3
{[%clk 0:03:09]} 20. Re1 {[%clk 0:02:20.7]} 20... Bc5 {[%clk 0:03:05.3]} 21.
fxe6 {[%clk 0:02:14.7]} 21... Bxd4 {[%clk 0:03:06.1]} 22. exf7+ {[%clk
0:02:15.5]} 22... Kf8 {[%clk 0:03:04.5]} 23. Qe2 {[%clk 0:01:55.7]} 23... Nxg5
{[%clk 0:02:48.9]} 24. Bxd4 {[%clk 0:01:49.1]} 24... Ngf3+ {[%clk 0:02:49.8]}
25. Kh1 {[%clk 0:01:49.8]} 25... Qxd4 {[%clk 0:02:48.5]} 26. Rad1 {[%clk
0:01:49]} 26... Qh4 {[%clk 0:02:49.2]} 27. Qg2 {[%clk 0:01:44.1]} 27... Rxc2
{[%clk 0:02:50.2]} 0-1

[Event "*** Titled Tuesday Blitz"]
[Site "Chess.com"]
[Date "2019.02.05"]
[Round "2"]
[White "1e41-0"]
[Black "leoo2001"]
[Result "0-1"]
[WhiteElo "2541"]
[BlackElo "2751"]
[TimeControl "180+2"]
[EndTime "13:18:11 PST"]
[Termination "leoo2001 won by resignation"]

1. d4 {[%clk 0:03:01.9]} 1... Nf6 {[%clk 0:03:00.4]} 2. c4 {[%clk 0:03:01.8]}
2... g6 {[%clk 0:03:01.9]} 3. Nc3 {[%clk 0:03:02.5]} 3... d5 {[%clk 0:02:58.5]}
4. Bg5 {[%clk 0:03:01.9]} 4... Ne4 {[%clk 0:02:58.1]} 5. h4 {[%clk 0:03:01.5]}
5... Bg7 {[%clk 0:02:39.6]} 6. cxd5 {[%clk 0:02:59.3]} 6... Nxc3 {[%clk
0:02:29]} 7. bxc3 {[%clk 0:03:01.2]} 7... Qxd5 {[%clk 0:02:30.6]} 8. e3 {[%clk
0:03:00.9]} 8... c5 {[%clk 0:02:28.5]} 9. Qf3 {[%clk 0:03:01.4]} 9... Qxf3
{[%clk 0:02:21.1]} 10. Nxf3 {[%clk 0:03:03.3]} 10... Nc6 {[%clk 0:02:22.4]} 11.
Rb1 {[%clk 0:03:01.2]} 11... h6 {[%clk 0:02:09.4]} 12. Bf4 {[%clk 0:03:01.5]}
12... O-O {[%clk 0:02:09.7]} 13. Bd3 {[%clk 0:02:56.9]} 13... Rd8 {[%clk
0:02:02]} 14. Ke2 {[%clk 0:02:54.6]} 14... b6 {[%clk 0:01:54]} 15. Be4 {[%clk
0:02:53]} 15... Bb7 {[%clk 0:01:54.9]} 16. dxc5 {[%clk 0:02:03.9]} 16... Ba6+
{[%clk 0:01:46]} 17. Ke1 {[%clk 0:01:45.8]} 17... Bxc3+ {[%clk 0:01:46.4]} 0-1

[Event "*** Titled Tuesday Blitz"]
[Site "Chess.com"]
[Date "2019.02.05"]
[Round "2"]
[White "aa175"]
[Black "masrahi"]
[Result "1-0"]
[WhiteElo "1942"]
[BlackElo "1863"]
[TimeControl "180+2"]
[EndTime "13:18:32 PST"]
[Termination "aa175 won by resignation"]

1. a3 {[%clk 0:03:01.9]} 1... e5 {[%clk 0:02:59]} 2. c4 {[%clk 0:03:02.3]} 2...
f5 {[%clk 0:02:57.3]} 3. Nc3 {[%clk 0:03:02.1]} 3... Nf6 {[%clk 0:02:58]} 4. e3
{[%clk 0:03:03.4]} 4... a6 {[%clk 0:02:58.5]} 5. Nf3 {[%clk 0:03:04.1]} 5... d6
{[%clk 0:02:55.6]} 6. Be2 {[%clk 0:03:05.1]} 6... Be7 {[%clk 0:02:56.2]} 7. O-O
{[%clk 0:03:06]} 7... O-O {[%clk 0:02:57.3]} 8. h3 {[%clk 0:03:05.5]} 8... c6
{[%clk 0:02:54.3]} 9. b4 {[%clk 0:03:06.3]} 9... Be6 {[%clk 0:02:53.9]} 10. Bb2
{[%clk 0:03:07.2]} 10... Nbd7 {[%clk 0:02:53.8]} 11. Ng5 {[%clk 0:03:07.9]}
11... Bf7 {[%clk 0:02:50.6]} 12. Nxf7 {[%clk 0:03:08.9]} 12... Rxf7 {[%clk
0:02:52.5]} 13. d4 {[%clk 0:03:10.8]} 13... e4 {[%clk 0:02:51]} 14. d5 {[%clk
0:03:11.6]} 14... c5 {[%clk 0:02:45.3]} 15. b5 {[%clk 0:03:09.8]} 15... a5
{[%clk 0:02:43.7]} 16. a4 {[%clk 0:03:09.2]} 16... b6 {[%clk 0:02:44.5]} 17. Qc2
{[%clk 0:03:06.5]} 17... g5 {[%clk 0:02:44.8]} 18. f3 {[%clk 0:03:07.7]} 18...
g4 {[%clk 0:02:14.5]} 19. fxe4 {[%clk 0:03:05.1]} 19... gxh3 {[%clk 0:02:13]}
20. gxh3 {[%clk 0:03:02.9]} 20... Rg7+ {[%clk 0:02:13.2]} 21. Kh1 {[%clk
0:03:03.8]} 21... Nh5 {[%clk 0:01:59.2]} 22. Bxh5 {[%clk 0:03:03]} 22... Nf6
{[%clk 0:01:50.7]} 23. Rxf5 {[%clk 0:03:02.7]} 23... Nxh5 {[%clk 0:01:43.3]} 24.
Rxh5 {[%clk 0:03:04.6]} 24... Bf6 {[%clk 0:01:41.7]} 25. Rg1 {[%clk 0:03:01.9]}
25... Qe7 {[%clk 0:01:32.1]} 26. e5 {[%clk 0:03:01]} 26... Rxg1+ {[%clk
0:01:26.7]} 27. Kxg1 {[%clk 0:03:02.9]} 27... Qg7+ {[%clk 0:01:23.4]} 28. Qg2
{[%clk 0:03:03.8]} 28... Qxg2+ {[%clk 0:01:14.6]} 29. Kxg2 {[%clk 0:03:05.7]}
29... Bxe5 {[%clk 0:01:16]} 30. Rxe5 {[%clk 0:03:06.8]} 30... dxe5 {[%clk
0:01:16.7]} 31. Ne4 {[%clk 0:03:08.7]} 31... Re8 {[%clk 0:01:11.6]} 32. Nf6+
{[%clk 0:03:09.3]} 1-0

[Event "*** Titled Tuesday Blitz"]
[Site "Chess.com"]
[Date "2019.02.05"]
[Round "2"]
[White "Anar_Aliakbarov"]
[Black "pedromartinez91"]
[Result "1-0"]
[WhiteElo "2477"]
[BlackElo "2497"]
[TimeControl "180+2"]
[EndTime "13:18:42 PST"]
[Termination "Anar_Aliakbarov won by resignation"]

1. d4 {[%clk 0:03:01.9]} 1... Nf6 {[%clk 0:02:58.2]} 2. c4 {[%clk 0:03:02.1]}
2... g6 {[%clk 0:02:58.6]} 3. Nc3 {[%clk 0:03:02.7]} 3... Bg7 {[%clk 0:02:59.9]}
4. e4 {[%clk 0:03:03.4]} 4... O-O {[%clk 0:03:01.5]} 5. Nf3 {[%clk 0:03:04.3]}
5... c6 {[%clk 0:03:02.6]} 6. e5 {[%clk 0:02:45.3]} 6... Ne8 {[%clk 0:03:02.6]}
7. Bf4 {[%clk 0:02:38.7]} 7... d6 {[%clk 0:03:01.6]} 8. Be2 {[%clk 0:02:37.3]}
8... Bg4 {[%clk 0:03:01.5]} 9. h3 {[%clk 0:02:36.8]} 9... Bxf3 {[%clk 0:03:02]}
10. Bxf3 {[%clk 0:02:38]} 10... dxe5 {[%clk 0:03:03.3]} 11. dxe5 {[%clk
0:02:39.1]} 11... Qxd1+ {[%clk 0:03:02.6]} 12. Rxd1 {[%clk 0:02:41]} 12... Nc7
{[%clk 0:03:03.7]} 13. O-O {[%clk 0:02:35.2]} 13... Ne6 {[%clk 0:03:04.3]} 14.
Bg3 {[%clk 0:02:36.3]} 14... Re8 {[%clk 0:02:56.5]} 15. Bg4 {[%clk 0:02:32.5]}
15... Na6 {[%clk 0:02:56.5]} 16. Bxe6 {[%clk 0:02:31.2]} 16... fxe6 {[%clk
0:02:57.1]} 17. Ne4 {[%clk 0:02:24.6]} 17... h6 {[%clk 0:02:55]} 18. Rd7 {[%clk
0:02:23.9]} 18... Rab8 {[%clk 0:02:53.3]} 19. Rfd1 {[%clk 0:02:23.8]} 19... Kf7
{[%clk 0:02:39]} 20. Nd6+ {[%clk 0:02:21.8]} 20... Kf8 {[%clk 0:02:34.4]} 21.
Nxe8 {[%clk 0:02:22.6]} 21... Rxe8 {[%clk 0:02:36.3]} 22. Rxb7 {[%clk
0:02:22.9]} 22... Nc5 {[%clk 0:01:53]} 23. Rxa7 {[%clk 0:02:13.9]} 23... Ne4
{[%clk 0:01:54]} 24. Bh2 {[%clk 0:01:55]} 24... g5 {[%clk 0:01:55]} 25. Rad7
{[%clk 0:01:55.1]} 25... Nc5 {[%clk 0:01:55.5]} 26. Rd8 {[%clk 0:01:55.9]} 26...
Rxd8 {[%clk 0:01:56.1]} 27. Rxd8+ {[%clk 0:01:57.8]} 27... Kf7 {[%clk 0:01:58]}
28. b4 {[%clk 0:01:55.6]} 28... Nb7 {[%clk 0:01:57.1]} 29. Rb8 {[%clk
0:01:55.5]} 1-0

[Event "*** Titled Tuesday Blitz"]
[Site "Chess.com"]
[Date "2019.02.05"]
[Round "2"]
[White "Romn69"]
[Black "tteshan"]
[Result "1-0"]
[WhiteElo "2255"]
[BlackElo "2132"]
[TimeControl "180+2"]
[EndTime "13:18:57 PST"]
[Termination "Romn69 won by resignation"]

1. d4 {[%clk 0:03:01.9]} 1... Nf6 {[%clk 0:02:59.1]} 2. Nf3 {[%clk 0:03:02.2]}
2... e6 {[%clk 0:03:00.2]} 3. g3 {[%clk 0:03:00]} 3... b6 {[%clk 0:02:53.6]} 4.
Bg2 {[%clk 0:03:00.1]} 4... Bb7 {[%clk 0:02:52.3]} 5. O-O {[%clk 0:03:00.6]}
5... d5 {[%clk 0:02:49.4]} 6. c4 {[%clk 0:03:01.1]} 6... c5 {[%clk 0:02:48.1]}
7. cxd5 {[%clk 0:02:42.3]} 7... Nxd5 {[%clk 0:02:47.9]} 8. Nc3 {[%clk
0:02:26.9]} 8... cxd4 {[%clk 0:02:40.5]} 9. Nxd5 {[%clk 0:02:17.9]} 9... Bxd5
{[%clk 0:02:37.9]} 10. Qxd4 {[%clk 0:02:15.4]} 10... Nc6 {[%clk 0:02:34.7]} 11.
Qa4 {[%clk 0:02:06.5]} 11... Bd6 {[%clk 0:02:25.5]} 12. e4 {[%clk 0:01:53.8]}
12... Bxe4 {[%clk 0:02:15.9]} 13. Qxe4 {[%clk 0:01:53.2]} 13... Rc8 {[%clk
0:02:16.4]} 14. Bg5 {[%clk 0:01:49.7]} 14... Qc7 {[%clk 0:02:12.5]} 15. Rac1
{[%clk 0:01:49.3]} 15... O-O {[%clk 0:02:11.7]} 16. Nd4 {[%clk 0:01:47.8]} 16...
Bc5 {[%clk 0:01:56.2]} 17. Nxc6 {[%clk 0:01:44.6]} 17... f5 {[%clk 0:01:48.1]}
18. Qxe6+ {[%clk 0:01:37.8]} 18... Kh8 {[%clk 0:01:48.3]} 19. Bf4 {[%clk
0:01:34.5]} 19... Qf7 {[%clk 0:01:35.3]} 20. Qxf7 {[%clk 0:01:34.3]} 20... Rxf7
{[%clk 0:01:37.2]} 21. Ne5 {[%clk 0:01:34.8]} 21... Re7 {[%clk 0:01:33.9]} 22.
b4 {[%clk 0:01:32.7]} 1-0

[Event "*** Titled Tuesday Blitz"]
[Site "Chess.com"]
[Date "2019.02.05"]
[Round "2"]
[White "dusanacns"]
[Black "Grischuk"]
[Result "0-1"]
[WhiteElo "2604"]
[BlackElo "3038"]
[TimeControl "180+2"]
[EndTime "13:19:05 PST"]
[Termination "Grischuk won by resignation"]

1. e4 {[%clk 0:02:54.5]} 1... e5 {[%clk 0:03:00.9]} 2. Nc3 {[%clk 0:02:53.7]}
2... Nc6 {[%clk 0:03:01.2]} 3. g3 {[%clk 0:02:54.9]} 3... Bc5 {[%clk 0:03:00.7]}
4. Bg2 {[%clk 0:02:55.8]} 4... d6 {[%clk 0:03:01.5]} 5. Na4 {[%clk 0:02:51.6]}
5... a5 {[%clk 0:02:51.9]} 6. Nxc5 {[%clk 0:02:51.4]} 6... dxc5 {[%clk
0:02:53.8]} 7. d3 {[%clk 0:02:52.7]} 7... Nge7 {[%clk 0:02:52.3]} 8. Ne2 {[%clk
0:02:51.1]} 8... Be6 {[%clk 0:02:42.6]} 9. O-O {[%clk 0:02:51.2]} 9... Qd7
{[%clk 0:02:42.5]} 10. f4 {[%clk 0:02:50.4]} 10... f6 {[%clk 0:02:27]} 11. Be3
{[%clk 0:02:50.4]} 11... b6 {[%clk 0:02:26.8]} 12. f5 {[%clk 0:02:39]} 12... Bf7
{[%clk 0:02:27.9]} 13. Qe1 {[%clk 0:02:37.4]} 13... Nb4 {[%clk 0:02:10.8]} 14.
Qc1 {[%clk 0:02:29]} 14... Nxa2 {[%clk 0:02:07.6]} 15. Qd2 {[%clk 0:02:25.8]}
15... Nb4 {[%clk 0:02:07.2]} 16. Nc3 {[%clk 0:02:26.8]} 16... O-O-O {[%clk
0:01:51.1]} 17. Qf2 {[%clk 0:02:19.2]} 17... Nec6 {[%clk 0:01:47.3]} 18. Nb5
{[%clk 0:01:53.4]} 18... Nd4 {[%clk 0:01:45.7]} 19. Nxd4 {[%clk 0:01:52.8]}
19... cxd4 {[%clk 0:01:45.6]} 20. Bd2 {[%clk 0:01:42]} 20... Nxc2 {[%clk
0:01:45]} 21. Rac1 {[%clk 0:01:43.1]} 21... Ne3 {[%clk 0:01:37.1]} 22. Bxe3
{[%clk 0:01:40.1]} 22... dxe3 {[%clk 0:01:39]} 23. Qxe3 {[%clk 0:01:42]} 23...
Qd4 {[%clk 0:01:38.5]} 0-1